{"text_format":"2","workbook":"xlsx","n_sheets":1,"sheets":["FORAGE"],"not_rendered":{"charts":0,"images":0,"macros":0,"external_links":0,"defined_names":0,"comments":0,"pivot_tables":0},"unopened":[],"bounds":{"document_bytes":16777216,"sheet_cells":100000,"run_cost":"one","rows_first":2000,"rows_last":500,"rows_between":2000,"halvings":0,"cell_chars":16384,"cell_head_chars":4096},"cells_cut":0,"cells_raw":0,"read":"whole","date_system":"1900"}

{"sheet":"FORAGE","index":0,"n_rows":80,"n_cols":6,"rows_kept":80,"cut":false,"hidden":false,"merged":[]}
[]
[]
[]
[]
["CADRE DE DEVIS ESTIMATIF ET QUANTITATIF POUR UN FORAGE","U","Q","Nombre","P.U","P.T (XAF)"]
["GENERALITES",{"$nulls":4},{"$f":"F9","v":0}]
["Etude de faisabilité","FF",1,1,null,{"$f":"E7*D7*C7","v":0}]
["Installation de chantier, frais divers,maindoeuvre et repli ","FF",1,1,null,{"$f":"E8*D8","v":0}]
["Sous-total 0",{"$nulls":4},{"$f":"SUM(F7:F8)","v":0}]
["FORAGE DU PUIT - A  LA MACHINE",{"$nulls":4},{"$f":"F27","v":0}]
["Foration en 12’’1/4, mise en place et extraction du tube guide provisoire de  travail de 0 à 10 m ","ml",{"$f":"10*1","v":10},1,null,{"$f":"PRODUCT(C11*E11)","v":0}]
["Foration  au rotary  en diam 11'' à 12'' à la boue biodégradable, de 10 à plus","ml",60,1,null,0]
["Diagraphie électrique complexe (Gama ray , Polarisation spontanée, résistivité)","U",1,1,null,0]
["Fourniture et pose de tubes pleins, vissés PVC DN 179/200  ","ml",47,1,null,0]
["Fourniture de pose de tubes crépinés vissés PVC  DN 179/200 avec fente 0.5 mm, munis de centreurs tous les 6 m d’intervalles","ml",21,1,null,0]
["Décanteur","ml",{"$f":"3*1","v":3},1,null,0]
["Fourniture  et mise en place de gravier filtre 0,7 -2  mm jusqu’ à 10 m au dessus de la dernière crépine","U",1,1,null,0]
["Mise en place d'un Packer bentonique (épaisseur 2m), remblai en tout venant d'espace annulaire et cimentation en tête de forage ","U",1,1,null,0]
["Développement  à l’air lift jusqu'à obtention d’une eau claire","H",{"$f":"6*1","v":6},1,null,0]
["Essais de pompage ",null,null,1]
["Pompage par paliers enchainés","H",{"$f":"4*1","v":4},1,null,{"$f":"PRODUCT(C21*E21)","v":0}]
["Remontée","H",2,1,null,{"$f":"PRODUCT(C22*E22)","v":0}]
["Essai longue durée (48 heures)","U",1,1,null,{"$f":"PRODUCT(C23*E23)","v":0}]
["Analyses physico-chimiques, bactériologiques et desinfection","U",1,1,null,{"$f":"PRODUCT(C24*E24)","v":0}]
["Fourniture et mise en place d'un capot de fermeture de forage","U",1,1,null,{"$f":"PRODUCT(C25*E25)","v":0}]
["Sous-total 1",{"$nulls":4},{"$f":"+SUM(F11:F25)","v":0}]
[]
[" SUPPORT ET RESERVOIR  METALLIQUE ( 15 m3, 12 metres Hauteur)",{"$nulls":4},{"$f":"F30","v":0}]
["Fourniture, transport et pose d'un château d'eau de 15 m3 à 12m de hauteur avec cuve en acier inox et supports en aciers profilés construit selon les spécifications techniques avec indicateur de niveau, échelle d'accès interieur et exterieur, ensemble de pièces de tuyauterie et plomberie, dispositif de vidange et trop-plein, y compris les etudes de sol et de beton, socle en béton armé, raccordement hydraulique et toutes sujetions.  ","U",1,1,null,{"$f":"E29*D29*C29","v":0}]
["Sous-total 2",{"$nulls":4},{"$f":"F29","v":0}]
[]
["installation des pompes et des panneaux  solaires",{"$nulls":4},{"$f":"+F37","v":0}]
["installation des supports et Pose des panneaux solaires","U",22,1,null,{"$f":"E33*D33*C33","v":0}]
["Disjoncteur de securité 32 A","U",2,1,null,0]
["Fouille de dimension 30x30/ 40 cm","m3",1.44,1,null,0]
["Béton de masse pour ancrage  des support panneaux","m3",1.44,1,null,0]
["Sous-total 3",{"$nulls":4},{"$f":"SUM(F33:F36)","v":0}]
["CLOTURE ANTI VANDALISME et cloture abreuvoir ",{"$nulls":4},{"$f":"+F45","v":0}]
["corniere de 50  pour support metal deploiyé (grillage solide en acier)","U",50,2,null,{"$f":"E39*C39*D39","v":0}]
["Barbellé anti vandalisme grand spirir","U",12,2,null,{"$f":"E40*C40*D40","v":0}]
["beton ","m3",{"$f":"0.3*0.3*0.4*16","v":0.57599999999999996},2,null,0]
["Métal deployé  ( grillage solide en acier) rouleau de 10m/1,2m  ","ml",64,2,null,0]
["Fil galva + tendeur ","U",8,2,null,0]
["anti rouille + Peinture à Huile Couleur Bleu - kg","U",8,2,null,0]
["Sous-total 4",{"$nulls":4},{"$f":"SUM(F39:F44)","v":0}]
["FONTAINE CANAL ET ABREUVOIR",{"$nulls":4},{"$f":"F51+F57+F61+F67+F73","v":0}]
["TERRASSEMENT"]
["Fouilles en rigole pour fontaine, canal et abreuvoir","m3",23,1,null,{"$f":"E48*D48*C48","v":0}]
["Remblai de fouilles","m3",6,1,null,0]
["Remblai compacté en couche successive en sable","m3",3.5,1,null,0]
["Sous total 5",null,null,1,null,{"$f":"SUM(F48:F50)","v":0}]
["Béton de propreté pour l'ensemble de terassement","m3",{"$f":"0.25+0.75+1","v":2},1,null,{"$f":"E52*D52*C52","v":0}]
["Béton armé pour semelles filantes pour fontaine","m3",1,1,null,{"$f":"E53*D53*C53","v":0}]
["Maçonnerie en agglos pleins de 20x20x40","m2",10,1,null,0]
["Béton armé pour amorces des poteaux et élevation","m3",0.3,1,null,0]
["Béton armé pour longrines/chaînage bas","m3",0.4,1,null,0]
["Sous total 6",{"$nulls":4},{"$f":"SUM(F52:F56)","v":0}]
["PLANCHER SOL",{"$nulls":4},{"$f":"F61","v":0}]
["Film polyane pour fontaine","m2",6,1,null,{"$f":"E59*D59*C59","v":0}]
["Béton armé pour dallage de forme d'aire (ép.=10cm)","m3",0.6,1,null,{"$f":"E60*D60*C60","v":0}]
["Sous total 7",null,null,1,null,{"$f":"SUM(F59:F60)","v":0}]
["BETON ARME EN ELEVATION",null,null,1,null,{"$f":"F67","v":0}]
["Maconnerie en agglos pleins de 15x20x400 ","m2",3,1,null,{"$f":"E63*D62*C63","v":0}]
["Béton armé pour marches","m3",0.35,1,null,{"$f":"E64*D63*C64","v":0}]
["Béton armé pour les  2 canaux","m3",{"$f":"1.35+1.5","v":2.85},1,null,0]
["Béton armé pour les 2 abreuvoires","m3",{"$f":"1.5+0.99","v":2.4900000000000002},null,null,0]
["Sous total 8",{"$nulls":4},{"$f":"SUM(F63:F66)","v":0}]
["ENDUIT ET REVETEMENT",{"$nulls":4},{"$f":"F73","v":0}]
["Enduits ciment de finition et raccordement sur les faces extérieures","m2",{"$f":"19.8+15+4.5","v":39.299999999999997},1,null,{"$f":"E69*D69*C69","v":0}]
["F/P carreaux sol grès ceramic  antiderappant","m2",8.5,1,null,{"$f":"E70*D70*C70","v":0}]
["F/P carreaux faeince  blanche","m2",9.1,1,null,0]
["Projection de la tyrolienne Bleu  sur faces extérieures de fontaine,canal et abreuvoir","m2",{"$f":"C69","v":39.299999999999997},1,null,0]
["Sous total 9",{"$nulls":4},{"$f":"SUM(F69:F72)","v":0}]
[{"$nulls":5},{"$f":"F51+F57+F61+F67+F73","v":0}]
["PLOMBERIE",{"$nulls":4},{"$f":"F78","v":0}]
["F/P Raccordement du reservoir aux robinets dutilisations en type PPR d'installation et raccordement au réseau","ml",1000,1]
["Pose de robinet de puisage y compris tous accessoires ","U",12,1]
["Sous total 10"]
["TOTAL HT POUR UN FORAGE"]
["TOTAL HT POUR DEUX FORAGES"]